bitfinex/quotes_SOLUSD_20220118
["timestamp","ask_amount","ask_price","bid_price","bid_amount"]
[1642480524869,0.25,138.4,138.35,0.25]
[1642480526078,3.57893287,138.42,138.36,2.89]
[1642480526273,27.1776,138.5,138.37,0.25]
[1642480526575,2.888,138.54,138.38,13.118]
[1642480526773,2.888,138.51,138.39,60.7975]
[1642480526978,260.22405627,138.57,138.42,28.0]
[1642480527179,259.77159357,138.57,138.46,10.8241]
[1642480527373,149.15657868,138.57,138.47,10.48]
[1642480527671,110.71296997,138.57,138.47,10.48]
[1642480527873,24.55196836,138.59,138.47,16.74]
[1642480528074,24.55196836,138.59,138.48,1.31950626]
[1642480528275,24.55196836,138.59,138.5,10.8211]
[1642480528474,41.13519942,138.67,138.51,212.807]
[1642480528673,41.13519942,138.67,138.52,193.87]
[1642480528903,10.29482056,138.56,138.53,13.366]
[1642480529104,41.13519942,138.67,138.55,61.0]
[1642480529301,80.26654887,138.67,138.59,10.8129]
[1642480529506,2.884,138.66,138.59,10.8129]
[1642480530503,2.884,138.66,138.61,10.8148]
[1642480530901,2.884,138.66,138.61,16.1198]
[1642480531103,41.13519942,138.67,138.61,16.1198]
[1642480531302,47.13519942,138.67,138.62,0.25]
[1642480531504,47.13519942,138.67,138.62,11.0635]
[1642480532107,41.13519942,138.67,138.62,11.0635]
[1642480532506,41.13519942,138.67,138.63,10.23]
[1642480532706,41.13519942,138.67,138.64,10.8116]
[1642480532905,41.13519942,138.67,138.65,16.29439994]
[1642480533105,2.884,138.78,138.66,24.0]
[1642480533307,8.884,138.78,138.66,0.25]
[1642480533504,2.884,138.78,138.67,10.23]
[1642480533804,90.8856948,138.82,138.68,0.25]
[1642480533805,2.883,138.81,138.68,0.25]
[1642480534104,48.53587037,138.77,138.68,10.23]
[1642480534305,2.883,138.76,138.68,10.23]
[1642480534906,0.25,138.75,138.69,0.25]
[1642480535106,2.883,138.76,138.69,0.25]
[1642480535305,2.883,138.81,138.69,0.25]
[1642480535507,2.883,138.81,138.69,8.519]
[1642480535705,0.25,138.8,138.69,8.519]
[1642480535904,2.882,138.79,138.69,8.519]
[1642480536311,35.72978451,138.78,138.69,2.882]
[1642480536505,35.72978451,138.78,138.68,10.23]
[1642480536506,2.883,138.77,138.68,10.23]
[1642480537207,0.25,138.76,138.69,0.25]
[1642480537406,2.883,138.77,138.68,10.23]
[1642480537608,2.883,138.77,138.69,0.25]
[1642480538406,0.25,138.76,138.69,0.25]
[1642480538607,0.25,138.76,138.68,10.23]
[1642480539007,0.25,138.76,138.65,10.23]
[1642480539207,36.24225712,138.74,138.65,10.48]
[1642480539407,2.883,138.75,138.65,10.48]
[1642480539708,2.883,138.76,138.65,10.48]
[1642480539910,8.883,138.77,138.65,10.48]
[1642480540708,8.883,138.77,138.66,1.31175383]
[1642480540907,2.883,138.79,138.67,13.363]
[1642480541310,2.883,138.79,138.67,13.623]
[1642480541509,2.883,138.81,138.68,1.31175383]
[1642480541708,10.23,138.82,138.69,13.112]
[1642480541912,63.40783628,138.82,138.69,19.362]
[1642480542110,2.882,138.81,138.69,19.362]
[1642480542710,2.882,138.81,138.69,13.362]
[1642480543309,13.6926,138.81,138.69,13.622]
[1642480543509,13.6926,138.81,138.69,14.93375383]
[1642480543709,2.882,138.81,138.69,14.93375383]
[1642480543910,2.882,138.81,138.69,13.362]
[1642480544111,2.882,138.81,138.69,10.23]
[1642480544712,41.25605869,138.8,138.69,10.23]
[1642480544911,10.8138,138.77,138.69,10.23]
[1642480545114,41.43964588,138.76,138.69,10.23]
[1642480545512,2.883,138.76,138.69,10.23]
[1642480546014,2.883,138.76,138.67,2.883]
[1642480546618,38.51976765,138.75,138.68,0.25]
[1642480546820,0.25,138.74,138.68,0.25]
[1642480547017,3.133,138.74,138.66,33.4929]
[1642480547216,3.133,138.74,138.64,13.113]
[1642480547418,3.133,138.74,138.65,0.25]
[1642480547816,13.9487,138.74,138.65,0.25]
[1642480548019,12.32546597,138.79,138.65,1.56217671]
[1642480548020,2.884,138.75,138.65,1.56217671]
[1642480548216,2.883,138.77,138.65,1.56217671]
[1642480548619,2.883,138.77,138.65,1.82217671]
[1642480549120,10.8143,138.76,138.65,0.25]
[1642480549317,2.883,138.75,138.64,0.25]
[1642480549518,43.84285272,138.77,138.65,1.31217671]
[1642480549519,6.99304715,138.76,138.65,1.31217671]
[1642480549718,4.10904715,138.76,138.66,13.113]
[1642480549918,4.10904715,138.76,138.66,13.363]
[1642480550128,4.10904715,138.76,138.67,1.31217671]
[1642480550318,4.10904715,138.76,138.68,13.363]
[1642480550920,6.0,138.77,138.68,13.363]
[1642480551522,10.8118,138.79,138.68,13.363]
[1642480552520,10.3118,138.79,138.68,13.363]
[1642480552724,10.3118,138.79,138.69,1.31217671]
[1642480552921,4.10857431,138.78,138.7,2.883]
[1642480553123,4.10857431,138.78,138.7,3.133]
[1642480553421,4.10857431,138.78,138.71,0.25]
[1642480553623,4.10857431,138.78,138.69,2.883]
[1642480553822,4.10857431,138.78,138.7,0.25]
[1642480555049,6.99157431,138.78,138.7,0.25]
[1642480555452,12.99157431,138.78,138.7,0.25]
[1642480555651,23.80417431,138.78,138.69,2.883]
[1642480555851,42.15486393,138.76,138.66,24.1269]
[1642480556051,2.883,138.75,138.66,24.1269]
[1642480556252,3.133,138.75,138.66,24.1269]
[1642480556952,10.8157,138.74,138.66,24.1269]
[1642480557352,10.8157,138.74,138.67,0.25]
[1642480559054,2.883,138.76,138.67,0.25]
[1642480559254,2.883,138.77,138.67,3.133]
[1642480559456,6.0,138.78,138.67,13.9432]
[1642480559656,6.0,138.78,138.67,24.4332]
[1642480559855,2.883,138.79,138.67,24.4332]
[1642480560058,2.883,138.83,138.68,1.30892927]
[1642480560259,10.27338749,138.84,138.69,13.362]
[1642480560456,54.39715346,138.84,138.69,20.844]
[1642480560657,54.39715346,138.84,138.7,1.30892927]
[1642480560860,2.882,138.83,138.71,13.362]
[1642480561059,4.10732006,138.82,138.71,13.362]
[1642480561257,45.42153054,138.81,138.71,19.362]
[1642480561460,45.42153054,138.81,138.71,16.48]
[1642480561656,45.42153054,138.81,138.71,10.48]
[1642480561657,0.25,138.8,138.71,10.48]
[1642480561857,2.882,138.79,138.71,16.48]
[1642480562058,46.94933394,138.78,138.71,10.48]
[1642480562259,0.25,138.77,138.69,2.882]
[1642480562457,2.883,138.76,138.66,24.1269]
[1642480562658,4.92205272,138.77,138.67,0.25]
[1642480562860,4.67205272,138.77,138.67,0.25]
[1642480563061,0.25,138.76,138.67,0.25]
[1642480563260,2.883,138.75,138.67,0.25]
[1642480563459,13.6977,138.75,138.66,24.1269]
[1642480564259,52.49879532,138.75,138.66,24.1269]
[1642480564859,52.49879532,138.75,138.67,0.25]
[1642480565662,13.6977,138.75,138.67,0.25]
[1642480566064,10.8147,138.75,138.67,3.133]
[1642480567863,10.8131,138.77,138.67,3.133]
[1642480568664,16.8131,138.77,138.67,3.133]
[1642480568863,0.25,138.76,138.67,3.133]
[1642480569063,2.883,138.75,138.67,0.25]
[1642480572568,3.133,138.76,138.67,3.133]
[1642480572766,2.883,138.78,138.67,3.133]
[1642480573170,6.0,138.78,138.67,21.213]
[1642480573366,6.0,138.78,138.67,21.473]
[1642480573567,47.06906774,138.8,138.67,32.2841]
[1642480573794,2.883,138.79,138.67,32.2841]
[1642480573969,4.10859185,138.77,138.67,32.2841]
[1642480575166,4.10859185,138.78,138.67,32.2841]
[1642480575566,4.10859185,138.78,138.67,104.1041]
[1642480575769,4.10859185,138.78,138.67,111.40663002]
[1642480576367,4.10859185,138.78,138.67,110.1041]
[1642480577773,10.8107,138.79,138.67,110.1041]
[1642480577971,4.10859185,138.8,138.67,110.1041]
[1642480578574,4.10859185,138.78,138.67,110.1041]
[1642480578974,4.10859185,138.78,138.67,38.2841]
[1642480579173,4.10859185,138.78,138.67,30.4341]
[1642480579573,2.05446836,138.74,138.67,30.4341]
[1642480579776,2.05446836,138.74,138.67,102.2541]
[1642480579975,2.05446836,138.74,138.67,30.4341]
[1642480580174,2.05446836,138.74,138.67,30.1741]
[1642480581377,2.05446836,138.74,138.67,30.4341]
[1642480582176,2.05446836,138.74,138.68,71.82]
[1642480582377,2.05446836,138.74,138.69,24.1702]
[1642480582776,2.05446836,138.74,138.69,31.73273002]
[1642480582977,4.10859185,138.78,138.7,139.12253002]
[1642480583179,2.05415446,138.76,138.71,13.113]
[1642480583480,2.05415446,138.76,138.72,71.82]
[1642480583676,2.05415446,138.76,138.73,13.113]
[1642480583884,2.05415446,138.76,138.74,6.06439994]
[1642480584076,2.05415446,138.76,138.74,21.87239994]
[1642480584275,2.883,138.82,138.75,0.25]
[1642480584476,6.99059185,138.83,138.75,72.07]
[1642480584678,4.10859185,138.83,138.75,3.132]
[1642480584876,4.10859185,138.83,138.75,3.392]
[1642480585076,10.10859185,138.83,138.75,3.392]
[1642480585277,4.10859185,138.81,138.76,71.82]
[1642480585478,4.10859185,138.81,138.75,24.1666]
[1642480585679,4.10859185,138.81,138.75,24.4266]
[1642480586278,6.0,138.83,138.75,24.4266]
[1642480586578,2.882,138.86,138.75,24.4266]
[1642480587079,8.882,138.86,138.75,24.4266]
[1642480587279,8.882,138.86,138.76,71.82]
[1642480587479,8.882,138.86,138.76,92.8538]
[1642480587779,2.882,138.86,138.77,0.25]
[1642480587981,6.16031771,138.87,138.79,71.82]
[1642480588180,4.10685185,138.85,138.8,10.23]
[1642480588383,4.10685185,138.85,138.8,24.65653002]
[1642480588682,4.10685185,138.85,138.81,73.12253002]
[1642480588906,4.10685185,138.85,138.82,10.48]
[1642480589108,4.10685185,138.85,138.82,11.78253002]
[1642480589307,4.10685185,138.85,138.83,3.03219997]
[1642480589509,4.10685185,138.91,138.83,23.65319997]
[1642480589711,4.10685185,138.91,138.84,0.25]
[1642480589911,2.88,138.9,138.84,0.25]
[1642480590109,4.66905272,138.9,138.84,0.25]
[1642480590811,2.88,138.9,138.84,0.25]
[1642480591011,2.88,138.91,138.84,0.25]
[1642480591611,13.6814,138.91,138.84,0.25]
[1642480591810,4.10685185,138.9,138.84,0.25]
[1642480592810,4.10685185,138.9,138.84,72.07]
[1642480593011,0.05705185,138.9,138.85,61.11]
[1642480593211,6.16031771,138.92,138.85,61.11]
[1642480593212,8.21661785,138.93,138.87,40.0]
[1642480593410,6.15741174,138.94,138.88,10.48]
[1642480593611,6.15741174,138.94,138.89,10.23]
[1642480593814,6.15741174,138.94,138.9,0.25]
[1642480594213,2.879,138.95,138.9,0.25]
[1642480594810,2.879,138.97,138.9,0.25]
[1642480595009,2.879,138.97,138.88,0.25]
[1642480595411,8.21661785,138.97,138.88,0.25]
[1642480595611,8.21661785,138.97,138.89,11.52930475]
[1642480595910,8.21661785,138.97,138.91,71.82]
[1642480596210,0.36141931,139.01,138.92,11.52930475]
[1642480596411,0.36141931,139.01,138.93,74.698]
[1642480596609,0.36141931,139.01,138.94,10.23]
[1642480596811,0.36141931,139.01,138.94,16.74]
[1642480597311,0.36141931,139.01,138.94,16.48]
[1642480597710,0.36141931,139.01,138.95,71.82]
[1642480597910,0.36141931,139.01,138.96,10.48]
[1642480598312,0.36141931,139.01,138.96,16.48]
[1642480598514,0.36141931,139.01,138.96,10.48]
[1642480599412,0.11141931,139.04,138.96,10.48]
[1642480599614,2.876,139.03,138.96,10.48]
[1642480600016,38.91734475,139.02,138.96,10.23]
[1642480600213,2.876,139.01,138.92,10.23]
[1642480600413,2.876,139.01,138.93,0.25]
[1642480600913,13.67,139.01,138.93,0.25]
[1642480601313,0.25,139.0,138.91,0.25]
[1642480601516,2.878,138.99,138.91,0.25]
[1642480601713,47.14896408,138.99,138.9,10.23]
[1642480601913,44.27096408,138.99,138.9,13.108]
[1642480602114,13.6745,138.98,138.9,10.23]
[1642480602313,13.9245,138.98,138.87,2.878]
[1642480602516,1.78905272,138.97,138.85,25.5384]
[1642480602713,1.78905272,138.97,138.85,22.6594]
[1642480602714,42.18870313,138.96,138.85,22.6594]
[1642480602916,42.43870313,138.96,138.84,2.879]
[1642480603718,10.8004,138.94,138.85,0.25]
[1642480607723,36.50924463,138.93,138.85,0.25]
[1642480607922,10.8025,138.91,138.83,2.879]
[1642480608125,10.8025,138.91,138.82,13.11]
[1642480608323,13.6825,138.91,138.82,16.23]
[1642480608522,10.8025,138.91,138.82,16.23]
[1642480609327,10.8025,138.91,138.83,0.25]
[1642480610528,10.8025,138.91,138.84,2.88]
[1642480610929,10.8025,138.91,138.85,0.25]
[1642480612327,10.8025,138.91,138.83,9.13]
[1642480614629,10.8025,138.91,138.83,9.39]
[1642480616431,13.6803,138.93,138.83,9.39]
[1642480616830,19.6803,138.93,138.83,9.39]
[1642480617033,4.10456405,138.92,138.84,82.05]
[1642480617233,4.10456405,138.92,138.84,10.23]
[1642480617431,4.10456405,138.92,138.85,0.25]
[1642480617636,4.10456405,138.92,138.86,13.11]
[1642480617830,4.10456405,138.92,138.87,0.25]
[1642480618032,4.10456405,138.93,138.87,0.25]
[1642480618233,4.10456405,138.93,138.88,10.23]
[1642480618634,4.10456405,138.93,138.89,0.25]
[1642480618833,4.10456405,138.93,138.89,10.48]
[1642480619034,6.0,138.93,138.89,10.48]
[1642480619235,4.10456405,138.94,138.89,10.48]
[1642480621134,4.10456405,138.95,138.89,10.48]
[1642480622138,48.57028587,138.94,138.85,10.23]
[1642480622335,2.879,138.94,138.86,0.25]
[1642480622769,4.10456405,138.92,138.86,0.25]
[1642480622970,14.90516405,138.92,138.86,0.25]
[1642480623469,3.129,138.91,138.82,2.879]
[1642480623669,40.7296018,138.9,138.82,2.879]
[1642480623870,2.88,138.89,138.83,0.25]
[1642480624270,13.6828,138.89,138.83,0.25]
[1642480625070,17.78736405,138.89,138.83,0.25]
[1642480625570,17.78736405,138.89,138.82,2.879]
[1642480625769,17.78736405,138.89,138.79,10.23]
[1642480625770,0.25,138.88,138.79,2.88]
[1642480625970,0.25,138.88,138.76,2.88]
[1642480625971,10.806,138.86,138.76,2.88]
[1642480627370,2.88,138.85,138.76,2.88]
[1642480627772,2.88,138.85,138.77,0.25]
[1642480627973,4.10456405,138.86,138.77,10.48]
[1642480628175,4.10456405,138.86,138.78,2.88]
[1642480628372,4.10456405,138.86,138.79,0.25]
[1642480628973,2.88,138.9,138.79,0.25]
[1642480628974,4.10456405,138.88,138.79,0.25]
[1642480629173,4.10456405,138.88,138.8,2.88]
[1642480629374,4.10456405,138.88,138.81,0.25]
[1642480630073,14.90816405,138.89,138.81,0.25]
[1642480630274,17.78816405,138.89,138.81,0.25]
[1642480630477,14.90816405,138.89,138.79,3.13]
[1642480630676,14.90816405,138.89,138.79,3.39]
[1642480633380,4.10456405,138.89,138.79,14.1924]
[1642480633580,4.10456405,138.89,138.79,13.9324]
[1642480633981,10.10456405,138.89,138.79,3.13]
[1642480634180,4.10456405,138.89,138.79,3.13]
[1642480634583,10.10456405,138.89,138.79,3.13]
[1642480634781,20.90766405,138.89,138.79,3.13]
[1642480635984,20.90766405,138.89,138.79,2.13]
[1642480638583,14.90766405,138.89,138.79,2.13]
[1642480639683,4.10456405,138.88,138.79,2.13]
[1642480639884,14.90846405,138.88,138.79,2.13]
[1642480640684,10.8039,138.88,138.79,2.13]
[1642480642085,46.51293902,138.87,138.78,2.88]
[1642480642288,10.8066,138.85,138.77,111.7]
[1642480642485,37.67474285,138.84,138.77,111.7]
[1642480642887,34.79474285,138.84,138.77,111.7]
[1642480643587,10.8079,138.83,138.77,111.7]
[1642480643788,10.8079,138.83,138.78,0.25]
[1642480645788,16.8079,138.83,138.78,0.25]
[1642480645987,6.0,138.83,138.78,0.25]
[1642480646388,2.88,138.84,138.78,0.25]
[1642480646590,4.10456405,138.85,138.78,0.25]
[1642480646788,4.10456405,138.85,138.77,0.25]
[1642480646990,0.25,138.87,138.77,0.25]
[1642480648192,2.88,138.86,138.77,0.25]
[1642480648394,41.81938289,138.86,138.77,0.25]
[1642480649394,2.88,138.86,138.77,0.25]
[1642480650595,13.6853,138.86,138.77,0.25]
[1642480650795,17.78986405,138.86,138.77,0.25]
[1642480653101,23.78986405,138.86,138.77,0.25]
[1642480654101,20.90986405,138.86,138.77,0.25]
[1642480654300,10.10456405,138.86,138.77,11.0541]
[1642480654801,10.10456405,138.86,138.77,11.3141]
[1642480655203,6.0,138.86,138.77,11.3141]
[1642480655404,7.23456405,138.87,138.77,11.3141]
[1642480656002,18.03896405,138.87,138.77,11.0541]
[1642480656201,18.03896405,138.87,138.77,0.25]
[1642480656627,4.10456405,138.86,138.77,0.25]
[1642480656824,2.88,138.85,138.77,0.25]
[1642480658226,4.10456405,138.86,138.77,0.25]
[1642480658429,14.91016405,138.86,138.77,0.25]
[1642480660025,10.8056,138.86,138.77,0.25]
[1642480660426,4.35456405,138.87,138.78,2.88]
[1642480660827,4.35456405,138.87,138.79,0.25]
[1642480661729,21.15916405,138.87,138.79,0.25]
[1642480661929,15.15916405,138.87,138.78,0.25]
[1642480662129,21.15916405,138.87,138.78,0.25]
[1642480662935,10.8063,138.85,138.78,0.25]
[1642480665637,41.36442319,138.84,138.78,0.25]
[1642480667137,41.36442319,138.84,138.77,0.25]
[1642480667541,47.36442319,138.84,138.77,0.25]
[1642480667939,41.36442319,138.84,138.77,0.25]
[1642480668340,47.36442319,138.84,138.77,0.25]
[1642480669242,6.0,138.84,138.77,0.25]
[1642480669644,13.6863,138.85,138.77,0.25]
[1642480669843,10.8063,138.85,138.77,0.25]
[1642480671946,10.8063,138.85,138.76,33.8192]
[1642480672147,0.25,138.84,138.76,33.8192]
[1642480672347,13.6881,138.83,138.76,10.23]
[1642480672546,39.38038891,138.82,138.76,10.23]
[1642480672751,2.882,138.81,138.76,10.23]
[1642480672948,42.51238891,138.82,138.76,10.23]
[1642480673349,42.51238891,138.82,138.72,146.0622]
[1642480673551,42.51238891,138.82,138.72,152.3222]
[1642480673860,53.32068891,138.82,138.72,152.3222]
[1642480674051,50.43868891,138.82,138.72,152.3222]
[1642480674248,56.43868891,138.82,138.72,152.0622]
[1642480674451,56.43868891,138.82,138.72,121.93]
[1642480674852,56.43868891,138.82,138.72,111.7]
[1642480675251,2.882,138.81,138.72,111.7]
[1642480675452,10.8112,138.79,138.72,111.7]
[1642480675854,0.25,138.78,138.72,111.7]
[1642480677357,0.25,138.78,138.73,0.25]
[1642480678160,0.25,138.78,138.72,111.7]
[1642480678360,2.882,138.77,138.72,111.7]
[1642480678661,2.882,138.77,138.69,2.882]
[1642480678861,2.882,138.77,138.7,0.25]
[1642480679060,40.07719306,138.78,138.7,0.25]
[1642480679261,37.19419306,138.78,138.7,0.25]
[1642480680661,10.8124,138.77,138.7,0.25]
[1642480683162,10.8124,138.77,138.69,0.25]
[1642480685164,16.8124,138.77,138.69,0.25]
[1642480685964,19.6954,138.77,138.68,34.6487]
[1642480686167,10.8151,138.74,138.67,114.583]
[1642480686366,10.8151,138.74,138.67,111.7]
[1642480687266,10.8151,138.74,138.68,0.25]
[1642480690570,16.8151,138.74,138.68,0.25]
[1642480693173,34.81864488,138.73,138.68,0.25]
[1642480694275,6.0,138.73,138.68,0.25]
[1642480694474,10.8151,138.74,138.68,0.25]
[1642480694673,16.8151,138.74,138.67,111.7]
[1642480695277,54.04969305,138.74,138.67,111.7]
[1642480695878,6.0,138.74,138.68,0.25]
[1642480696279,4.10456405,138.78,138.68,0.25]
[1642480696483,4.10456405,138.78,138.68,24.4472]
[1642480696681,4.10456405,138.78,138.68,34.6772]
[1642480696881,53.72586634,138.78,138.69,2.883]
[1642480697282,53.72586634,138.78,138.7,0.25]
[1642480697484,49.62130229,138.78,138.7,0.25]
[1642480697711,6.0,138.78,138.71,2.883]
[1642480697913,4.10456405,138.79,138.72,0.25]
[1642480698515,4.10456405,138.8,138.72,0.25]
[1642480698712,39.1275594,138.8,138.72,0.25]
[1642480699613,34.8098,138.81,138.73,2.882]
[1642480699812,5.6910567,138.82,138.74,0.25]
[1642480700012,5.6910567,138.82,138.75,2.882]
[1642480700413,1.58649265,138.82,138.76,0.25]
[1642480702314,1.58649265,138.82,138.75,0.51]
[1642480702514,1.58649265,138.82,138.75,0.25]
[1642480703315,2.05295135,138.81,138.75,0.25]
[1642480703916,37.81112411,138.8,138.74,0.25]
[1642480704717,37.81112411,138.8,138.73,2.882]
[1642480704917,2.882,138.79,138.74,0.25]
[1642480705117,39.86407546,138.8,138.74,0.25]
[1642480705319,2.05295135,138.8,138.74,0.25]
[1642480706017,2.05295135,138.79,138.74,0.25]
[1642480707025,8.05295135,138.81,138.74,0.25]
[1642480707220,10.93495135,138.81,138.74,0.25]
[1642480707823,0.25,138.8,138.73,2.01254893]
[1642480708024,2.882,138.79,138.73,2.01254893]
[1642480708726,10.93495135,138.81,138.73,2.01254893]
[1642480708925,8.05295135,138.81,138.73,2.01254893]
[1642480709126,8.05295135,138.81,138.74,0.25]
[1642480709326,8.05295135,138.81,138.73,0.25]
[1642480710229,6.0,138.81,138.74,2.01254893]
[1642480710629,14.447744,138.82,138.75,0.25]
[1642480710828,3.639444,138.82,138.75,0.25]
[1642480711929,1.58649265,138.82,138.75,0.25]
[1642480713031,1.58649265,138.82,138.75,3.132]
[1642480713529,1.58649265,138.82,138.75,3.392]
[1642480713730,1.58649265,138.82,138.75,0.51]
[1642480714130,1.58649265,138.82,138.75,0.25]
[1642480714530,7.58649265,138.82,138.75,0.25]
[1642480716432,7.58649265,138.82,138.75,73.152]
[1642480716834,1.58649265,138.82,138.75,79.412]
[1642480717034,2.882,138.87,138.77,71.82]
[1642480717236,4.93295135,138.88,138.77,74.7]
[1642480717437,4.93295135,138.88,138.77,3.14]
[1642480717635,2.88,138.88,138.77,2.88]
[1642480717837,37.59545176,138.87,138.77,3.14]
[1642480718039,2.88,138.86,138.76,34.275]
[1642480718236,2.88,138.86,138.77,0.25]
[1642480719639,2.88,138.86,138.77,72.07]
[1642480719838,2.88,138.88,138.77,72.33]
[1642480720238,0.25,138.87,138.77,72.33]
[1642480720640,2.88,138.88,138.78,10.23]
[1642480720840,6.0,138.89,138.79,72.07]
[1642480721042,43.8068006,138.9,138.8,2.88]
[1642480721241,43.8068006,138.9,138.81,0.25]
[1642480721442,47.56603095,138.9,138.81,0.25]
[1642480721641,43.8068006,138.9,138.81,0.25]
[1642480722642,54.6090006,138.9,138.81,0.25]
[1642480722843,43.8068006,138.9,138.81,0.25]
[1642480723640,2.88,138.91,138.81,0.25]
[1642480723877,0.25,138.9,138.81,0.25]
[1642480725840,54.68784812,138.91,138.81,0.25]
[1642480726043,51.80784812,138.91,138.81,0.25]
[1642480727343,11.0526,138.9,138.81,0.25]
[1642480727545,13.9326,138.9,138.81,0.25]
[1642480727745,13.6826,138.9,138.81,0.25]
[1642480728149,19.6826,138.9,138.81,0.25]
[1642480728346,0.25,138.89,138.81,0.25]
[1642480728547,11.0534,138.89,138.81,0.25]
[1642480728746,2.88,138.88,138.8,0.25]
[1642480729146,0.25,138.87,138.8,0.25]
[1642480730949,2.88,138.89,138.8,0.25]
[1642480731148,31.5605,138.9,138.8,3.13]
[1642480731378,0.25,138.89,138.8,3.13]
[1642480732551,22.6805,138.9,138.8,74.95]
[1642480732753,22.6805,138.9,138.8,75.21]
[1642480732955,28.6805,138.9,138.8,75.21]
[1642480733152,22.6805,138.9,138.8,75.21]
[1642480733551,22.6805,138.9,138.8,86.0113]
[1642480734753,27.99686074,138.92,138.8,86.0113]
[1642480734954,25.11686074,138.92,138.81,33.9039]
[1642480735159,25.11686074,138.92,138.83,10.7987]
[1642480735361,1.30646074,138.92,138.84,0.25]
[1642480735760,1.30646074,138.92,138.84,1.53658468]
[1642480735960,1.30646074,138.92,138.84,11.76658468]
[1642480736160,1.30646074,138.92,138.84,18.02658468]
[1642480736662,1.30646074,138.92,138.86,10.7966]
[1642480736860,1.30646074,138.92,138.87,3.129]
[1642480737260,1.30646074,138.92,138.87,3.389]
[1642480739490,1.30646074,138.92,138.87,0.51]
[1642480739690,1.30646074,138.92,138.87,0.25]
[1642480740697,1.30646074,138.92,138.86,24.1656]
[1642480740996,1.30646074,138.92,138.86,13.109]
[1642480741794,1.30646074,138.92,138.87,0.25]
[1642480760246,2.05295135,138.94,138.88,11.51658468]
[1642480760445,2.879,138.96,138.89,36.0]
[1642480760644,2.879,138.96,138.9,10.23]
[1642480760850,2.879,138.96,138.91,72.07]
[1642480761046,2.879,138.96,138.92,82.05]
[1642480761243,2.879,138.96,138.93,0.25]
[1642480761447,2.879,138.96,138.94,6.06439994]
[1642480761643,2.879,138.96,138.94,16.85579994]
[1642480761843,2.879,138.96,138.94,6.06439994]
[1642480762248,2.878,138.98,138.94,6.06439994]
[1642480762646,0.25,138.97,138.94,6.06439994]
[1642480762848,2.878,138.96,138.94,6.06439994]
[1642480763748,2.878,138.98,138.94,6.06439994]
[1642480763948,63.07571287,138.99,138.94,6.06439994]
[1642480764146,49.40251287,138.99,138.94,6.06439994]
[1642480765346,2.878,139.0,138.94,6.06439994]
[1642480765547,0.25,138.99,138.94,6.06439994]
[1642480767049,11.0451,138.99,138.94,6.06439994]
[1642480767550,10.7951,138.99,138.94,6.06439994]
[1642480767750,0.25,138.98,138.94,6.06439994]
[1642480768750,42.60838662,139.0,138.94,6.06439994]
[1642480768950,14.89876405,139.01,138.94,6.06439994]
[1642480769153,0.25,139.0,138.94,6.06439994]
[1642480770552,63.41734525,139.01,138.94,6.06439994]
[1642480771755,3.128,139.0,138.94,6.06439994]
[1642480771953,10.7952,138.99,138.94,6.06439994]